Cogmind - Beta 17 @@@ ROGUE MODE // 2026.07.29 @ 14:57:35 Player: 50l Result: Destroyed by H-66 Slayer with Heavy Assault Rifle Performance ------------- Evolutions (4) 2000 Regions Visited (5) 1000 Robots Destroyed (53) 265 Value Destroyed (1711) 1711 Prototype IDs (34) 680 Alien Tech Used (0) 0 Bonus (3038) 3038 TOTAL SCORE: 8694 Bonus ------- Follower Combat Kills 238 Delivered SUBCON Basin 2000 Registered with UFD 300 Met Optimus in HQ 500 Cogmind --------- Core Integrity 0/850 Matter 252/300 Energy 144/150 System Corruption 4% Temperature Cool (12) Movement Flying (28) Location -6/Factory Parts ------- > --- POWER (1) -------- Light Angular Momentum Engine > --- PROPULSION (4) --- VTOL Module VTOL Module Nuclear Pulse Thruster Nuclear Pulse Thruster > --- UTILITY (8) ------ Advanced Weight Redist. System Advanced Signal Interpreter Improved Reaction Control System Improved Utility Shielding Hacking Suite Improved Hacking Suite Improved System Shield Improved System Shield > --- WEAPON (2) ------- Chainsword Power Sword > --- INVENTORY (5) ---- Meta Core Deep Structural Scanner Authchip [Propulsion] Coil Gun Long-range Missile Launcher Peak State ------------ > --- POWER ------------ Micro Nuclear Core > --- PROPULSION ------- Combat Airjet Combat Airjet Combat Airjet Combat Airjet > --- UTILITY ---------- Advanced Melee Analysis Suite Advanced Melee Analysis Suite Advanced Melee Analysis Suite Hacking Suite Improved Hacking Suite Makeshift System Shield Improved System Shield Tech Extrapolator > --- WEAPON ----------- Ripper Heavy Pick > --- INVENTORY -------- Meta Core Deep Structural Scanner Improved Hacking Suite Authchip [Propulsion] Coil Gun [Rating: 74] Favorites ----------- Power Light Nuclear Core Engine Light Ion Engine Power Core Light Nuclear Core Propulsion Compact Wheel Treads Light Treads Wheel Compact Wheel Hover Unit Combat Airjet Flight Unit VTOL Module Utility Humpback Device V3-11A's Pendant Storage Humpback Processor Tech Extrapolator Hackware Makeshift System Shield Protection Medium Armor Plating Weapon Particle Cannon Energy Gun Small Laser Energy Cannon Particle Cannon Ballistic Gun Coil Gun Ballistic Cannon Slug Cannon Launcher Missile Launcher Slashing Weapon Ripper Piercing Weapon Heavy Pick Build | -11 -10 -10 -9 -9 -6 ------- Run | Yrd Mat Sub Rec Scr Fac Slots Evolved 8 | . . . . . 8 Power . | . . . . . . Propulsion 2 | . . . . . 2 Utility 6 | . . . . . 6 Weapon . | . . . . . . Parts Attached 72 | 6 5 9 1 2 49 Power 6 | 1 . 1 . . 4 Engine 4 | 1 . . . . 3 Core 2 | . . 1 . . 1 Reactor . | . . . . . . Propulsion 20 | 2 . 3 . 2 13 Treads 3 | 1 . 1 . . 1 Leg . | . . . . . . Wheel 7 | 1 . 2 . 2 2 Hover 6 | . . . . . 6 Flight 4 | . . . . . 4 Utility 30 | 1 3 4 . . 22 Device 10 | . 1 3 . . 6 Storage 3 | 1 1 1 . . . Processor 6 | . . . . . 6 Hackware 7 | . . . . . 7 Protection 4 | . 1 . . . 3 Artifact . | . . . . . . Weapon 16 | 2 2 1 1 . 10 Energy Gun 2 | 2 . . . . . Energy Cannon 4 | . 2 1 . . 1 Ballistic Gun 2 | . . . . . 2 Ballistic Cannon 2 | . . . 1 . 1 Launcher 1 | . . . . . 1 Special Weapon . | . . . . . . Impact Weapon . | . . . . . . Slashing Weapon 4 | . . . . . 4 Piercing Weapon 1 | . . . . . 1 Special Melee Weapon . | . . . . . . Unidentified Prototypes 3 | . . 2 . . 1 Parts Lost 27 | . . 5 . . 22 Power 3 | . . 1 . . 2 Propulsion 11 | . . 2 . . 9 Utility 9 | . . . . . 9 Weapon 4 | . . 2 . . 2 Highest Loss Streak 7 | . . 4 . . 7 To Critical Strikes . | . . . . . . Average Backups 17 | 2 11 14 16 25 14 Power 1 | . 1 1 2 2 . Propulsion . | 1 2 . . 1 . Utility 10 | . 4 8 9 15 7 Weapon 3 | . 2 2 3 4 3 Tool/Special . | . . . . . . Unused Backups 37 | . . 7 . 7 23 Power 3 | . . 1 . . 2 Propulsion 3 | . . 1 . 1 1 Utility 20 | . . 4 . 5 11 Weapon 8 | . . 1 . 1 6 Tool/Special 3 | . . . . . 3 Average Slot Usage (%) 78 | . 99 77 59 75 83 Engine 1 | . 14 . . . 1 Core 10 | . . 13 14 14 3 Treads 2 | . 14 3 . . . Wheel 14 | . 14 14 14 19 7 Hover 2 | . . . . . 10 Device 5 | . 8 10 . . 7 Storage 11 | . 14 14 14 13 2 Processor 2 | . . . . . 11 Hackware 3 | . . . . . 17 Protection 1 | . 5 . . . 3 Energy Cannon 13 | . 19 19 14 14 1 Ballistic Cannon 4 | . . . 2 14 1 Slashing Weapon 1 | . . . . . 5 Peak Build Rating 74 | 6 13 32 36 37 74 Average Rating 28 | 4 10 19 32 23 56 On Entrance 15 | . 6 13 32 19 25 Avg Prop Armor Cover (%) 11 | 17 11 12 . . 9 Naked Turns . | . . . . . . Heaviest Build 236 | 10 31 209 216 216 236 Greatest Support 50 | 16 20 36 16 26 50 Greatest Overweight (x) 24 | . 1 13 13 13 24 Average Overweight (x) 3 | . . 2 13 9 1 Largest Inventory Capacity 35 | 8 15 35 35 35 35 Average Capacity 24 | 7 13 19 35 34 17 Most Carried 35 | 4 15 35 35 35 32 Average Carried 21 | 2 11 18 34 27 14 Final Capacity 35 | 8 15 35 35 35 5 Final Carried 35 | 4 15 35 20 32 5 Class Distribution -------------------- 55% | Hauler-Mutant 32% | Mutant 6% | Hacker-Gladiator 3% | Hacker-Mutant Dominant Class ---------------- Mutant | -10/Materials Mutant | -10/Subcaves Hauler-Mutant | -9/Recycling Hauler-Mutant | -9/Scraptown Hauler-Mutant | -6/Factory Resources | -11 -10 -10 -9 -9 -6 ----------- Run | Yrd Mat Sub Rec Scr Fac Matter Collected 1268 | 168 142 90 22 30 816 Remotely . | . . . . . . Salvage Created 1771 | . 551 68 94 . 1058 Parts 91 | . 36 4 4 . 47 Haulers Intercepted 3 | . 2 . . . 1 Recyclers Shooed 1 | . . . . . 1 Parts Field Recycled . | . . . . . . Retrieved Matter . | . . . . . . Parts Self-Destructed 14 | . . 14 . . . Prevented . | . . . . . . Parts Restored . | . . . . . . Kills | -11 -10 -10 -9 -9 -6 ------- Run | Yrd Mat Sub Rec Scr Fac Combat Hostiles Destroyed 41 | . 10 2 2 . 27 Melee 12 | . . . . . 12 Guns 7 | . 5 . . . 2 Cannons 19 | . 5 2 2 . 10 AOE 3 | . . . . . 3 Classes Destroyed 11 | . 7 1 1 . 2 Worker 4 | . 2 . . . 2 Hauler 3 | . 2 . . . 1 Recycler 1 | . 1 . . . . Operator 1 | . 1 . . . . Watcher 3 | . 3 . . . . Swarmer 16 | . 6 . . . 10 Grunt 13 | . 4 . . . 9 Sentry 3 | . . . 2 . 1 Programmer 6 | . . . . . 6 Behemoth 1 | . . . . . 1 Subdweller 2 | . . 2 . . . Best Kill Streak 4 | . 4 2 1 . 3 Combat Bots Only 3 | . 3 2 1 . 3 Max Kills in Single Turn 3 | . 2 1 1 . 3 Gunslinging . | . . . . . . Exploded 3 | . . . . . 3 Melee 1 | . . . . . 1 Uniques/NPCs Destroyed . | . . . . . . Combat | -11 -10 -10 -9 -9 -6 -------- Run | Yrd Mat Sub Rec Scr Fac Hostile Shots Fired 428 | . 38 35 3 5 347 Missed 167 | . 11 5 2 1 148 Hits 261 | . 27 30 1 4 199 Melee 2 | . . . . 1 1 Projectile 259 | . 27 30 1 3 198 AOE 2 | . . . . . 2 Critical Strikes 8 | . . 1 . . 7 Actively Blocked 1 | . . . . . 1 Damage Taken 4389 | . 279 698 32 50 3330 Core 1051 | . 66 122 . . 863 Absorbed by Shields . | . . . . . . Redirected to Shielding 73 | . . . . . 73 Regen/Repaired (Parts) 296 | . . . . 181 115 Core Remaining (%) 62 | 100 . . . 24 . Volleys Fired 126 | . 40 22 5 . 59 Largest 2 | . 2 2 2 . 2 Hottest 136 | . 128 136 108 . 109 Shots Fired 224 | . 80 34 7 . 103 Gun 59 | . 40 . . . 19 Cannon 164 | . 40 34 7 . 83 Launcher 1 | . . . . . 1 Special . | . . . . . . Kinetic 61 | . . . 2 . 59 Thermal 162 | . 80 34 5 . 43 Explosive 1 | . . . . . 1 Electromagnetic . | . . . . . . Robot Hit Streak 17 | . 15 17 8 . 15 Robot Miss Streak 4 | . 4 1 . . 4 Penetration Max . | . . . . . . Secondary Targets 1 | . 1 . . . . Max Gunslinging Chain 1 | . 1 . . . . Shots Hit Robots 197 | . 52 21 6 . 118 Core Hits 89 | . 25 3 2 . 59 Critical Kills 2 | . . . . . 2 Critical Parts Destroyed . | . . . . . . Critical Strikes 6 | . . . . . 6 Destroy 2 | . . . . . 2 Sever 3 | . . . . . 3 Impale 1 | . . . . . 1 Melee Attacks 68 | . . . . . 68 Impact . | . . . . . . Slashing 56 | . . . . . 56 Piercing 12 | . . . . . 12 Sneak Attacks 4 | . . . . . 4 Combat Hostiles . | . . . . . . Follow-up Attacks 3 | . . . . . 3 Damage Inflicted 5652 | . 781 409 129 15 4318 Guns 658 | . 324 . . . 334 Cannons 2964 | . 457 409 129 . 1969 Explosions 179 | . . . . . 179 Melee 1836 | . . . . . 1836 Ramming 15 | . . . . 15 . Kinetic 1566 | . . . 23 . 1543 Thermal 2056 | . 781 409 106 . 760 Explosive 179 | . . . . . 179 Electromagnetic . | . . . . . . Impact . | . . . . . . Slashing 1570 | . . . . . 1570 Piercing 266 | . . . . . 266 Highest Corruption 4 | . . . . . 4 Average Corruption 1 | . . . . . 1 Corruption Purged 1 | . . . . . 1 Corruption Blocked . | . . . . . . Effects 14 | . . . . . 14 Message Errors 4 | . . . . . 4 Matter Fused 2 | . . . . . 2 Heat Flow Errors 4 | . . . . . 4 Data Loss (minor) 2 | . . . . . 2 Data Loss (major) 1 | . . . . . 1 Alerts 1 | . . . . . 1 Overload Shots . | . . . . . . Overflow Damage 118 | . 5 12 . . 101 Projectiles 95 | . 5 12 . . 78 Explosions . | . . . . . . Melee 23 | . . . . . 23 Knockbacks 14 | . . . . . 14 Impact . | . . . . . . Kinetic 13 | . . . . . 13 Secondary 1 | . . . . . 1 Self-Inflicted Damage 12 | . . . . 7 5 Shots 1 | . . . . . 1 Rammed 1 | . . . . 1 . Targets Rammed 1 | . . . . 1 . Kicked . | . . . . . . Crushed . | . . . . . . Highest Temperature 240 | . 240 . 117 . 195 Average Temperature 72 | . 77 . 56 . 70 Received Heat Transfer 789 | . 63 6 9 . 711 Siege Activations . | . . . . . . Martial Activations . | . . . . . . Shielding Activations . | . . . . . . Robots Disrupted . | . . . . . . Combat Hostiles . | . . . . . . Robots Corrupted . | . . . . . . Combat Hostiles . | . . . . . . Parts Fried . | . . . . . . Impact Corruptions . | . . . . . . Robots Melted . | . . . . . . Combat Hostiles . | . . . . . . Parts Melted 3 | . 3 . . . . Heat Transferred 3611 | . 1613 777 185 . 1036 Parts Sabotaged . | . . . . . . Parts Stolen . | . . . . . . Parts Stripped . | . . . . . . Power Chain Reactions . | . . . . . . Alert | -11 -10 -10 -9 -9 -6 ------- Run | Yrd Mat Sub Rec Scr Fac Maximum Alert Level 1 | . . . . . 1 Low Security (%) 92 | 100 100 . 100 . 83 Level 1 7 | . . . . . 16 Level 2 . | . . . . . . Level 3 . | . . . . . . Level 4 . | . . . . . . Level 5 . | . . . . . . High Security . | . . . . . . Max Security . | . . . . . . Peak Influence 391 | . 131 . 76 . 391 Initial 24 | . . . 24 . . Average 58 | . 65 . 7 . 89 Influence Increases 2453 | . 519 79 230 . 1625 Destroy 0b10 Robot/C 900 | . 200 60 100 . 540 Destroy 0b10 Robot/NC 60 | . 45 . . . 15 Destroy Leader 182 | . 50 . . . 132 Allied During Kill 34 | . . 19 15 . . Successful Hack 120 | . 42 . 24 . 54 Select Force Hacks 150 | . 60 . 90 . . Disable Machine 45 | . 30 . . . 15 Destroy Structure 32 | . 2 . 1 . 29 Partial Spotted 90 | . . . . . 90 Lose Combat Pursuer 840 | . 90 . . . 750 Influence Decreases 2120 | . 464 82 282 . 1292 Entered New Map 55 | . . 27 28 . . Time Decay 1221 | . 464 17 230 . 510 Search Patrol Dispatched 200 | . . . . . 200 Lost Part 209 | . . 18 . . 191 Lost Ally 59 | . . 20 24 . 15 Purge Threat 376 | . . . . . 376 Squads Dispatched 17 | . 2 . . . 15 Investigation 6 | . 2 . . . 4 Extermination 6 | . . . . . 6 Reinforcement 5 | . . . . . 5 Assault . | . . . . . . Garrison . | . . . . . . Intercept . | . . . . . . Searches Triggered 2 | . . . . . 2 Construction Impeded . | . . . . . . Haulers Reinforced . | . . . . . . Active Scanning Responses . | . . . . . . Cargo Convoy Interrupts . | . . . . . . Stealth | -11 -10 -10 -9 -9 -6 --------- Run | Yrd Mat Sub Rec Scr Fac Distress Signals . | . . . . . . Communications Jammed . | . . . . . . Distress Signals . | . . . . . . Times Spotted 120 | . 20 6 5 5 84 Peak Tracking Total 9 | . 3 2 2 4 9 Tactical Retreats 24 | . 2 . . . 22 Traps | -11 -10 -10 -9 -9 -6 ------- Run | Yrd Mat Sub Rec Scr Fac Traps Triggered 9 | . 1 2 . . 6 Indirectly . | . . . . . . Trap Hack Attempts . | . . . . . . Triggered . | . . . . . . Disarmed . | . . . . . . Reprogrammed . | . . . . . . Reused . | . . . . . . Traps Extracted . | . . . . . . Installed . | . . . . . . Triggered . | . . . . . . Machines | -11 -10 -10 -9 -9 -6 ---------- Run | Yrd Mat Sub Rec Scr Fac Machines Disabled 5 | . 2 2 . . 1 Max in Single Turn 1 | . 1 1 . . 1 Machines Repaired . | . . . . . . Machines Dismantled . | . . . . . . Machines Sabotaged . | . . . . . . Overloaded Fab Kills . | . . . . . . Hacking | -11 -10 -10 -9 -9 -6 --------- Run | Yrd Mat Sub Rec Scr Fac Machines Accessed 44 | . 9 3 9 3 20 Terminals 27 | . 7 . 6 . 14 Fabricators . | . . . . . . Repair Stations 1 | . . . . . 1 Recycling Units 9 | . 2 . 3 . 4 Scanalyzers 1 | . . . . . 1 Garrison Access . | . . . . . . Total Hacks 185 | . 28 3 31 26 97 Successful 128 | . 21 3 21 26 57 Failed 55 | . 6 . 10 . 39 Catastrophic 9 | . 1 . . . 8 Database Lockouts 2 | . 1 . . . 1 Manual 114 | . 26 . 26 . 62 Terminals 134 | . 25 . 25 . 84 Fabricators . | . . . . . . Repair Stations 2 | . . . . . 2 Recycling Units 17 | . 3 . 6 . 8 Scanalyzers 3 | . . . . . 3 Garrison Access . | . . . . . . Terminal Hacks 75 | . 7 3 4 26 35 Record 26 | . . . . 26 . Part Schematic 3 | . . . . . 3 Robot Analysis 5 | . 2 . 1 . 2 Prototype ID Bank 4 | . 1 . . . 3 Open Door 1 | . . 1 . . . Level Access Points 2 | . . . . . 2 Branch Access Points 2 | . 1 . . . 1 Emergency Access Points 3 | . 1 . . . 2 Terminal Index 2 | . . . 1 . 1 Fabricator Index 1 | . . . . . 1 Recycling Unit Index 1 | . . . . . 1 Garrison Index 1 | . . . . . 1 Alert Level 3 | . . . . . 3 Unreport Threat 3 | . . . . . 3 Locate Traps 2 | . . . . . 2 Security Status 1 | . . . . . 1 Investigation Status 1 | . . . . . 1 Extermination Status 1 | . . . . . 1 Recall Investigation 1 | . . . . . 1 Recall Extermination 1 | . . . . . 1 Hauler Manifests 4 | . 1 . 1 . 2 Registered Components 2 | . 1 . . . 1 Registered Prototypes 1 | . . . . . 1 Zone Layout 2 | . . . 1 . 1 Proto ID Catalog 1 | . . 1 . . . Release Object 1 | . . 1 . . . Fabricator Hacks . | . . . . . . Repair Station Hacks 2 | . . . . . 2 Scan Component 1 | . . . . . 1 Repair 1 | . . . . . 1 Recycling Unit Hacks 5 | . 1 . 3 . 1 Report Inventory 5 | . 1 . 3 . 1 Scanalyzer 3 | . . . . . 3 Retrieve Study 3 | . . . . . 3 Garrison Access Hacks . | . . . . . . Unauthorized Hacks 43 | . 13 . 14 . 16 Terminals 34 | . 11 . 11 . 12 Assimilate 1 | . . . . . 1 Botnet 17 | . 5 . 6 . 6 Skim 16 | . 6 . 5 . 5 Fabricators . | . . . . . . Repair Stations . | . . . . . . Recycling Units 9 | . 2 . 3 . 4 Mask 1 | . . . . . 1 Tunnel 5 | . 2 . 3 . . Fedlink 3 | . . . . . 3 Scanalyzers . | . . . . . . Garrison Access . | . . . . . . Data Cores Recovered 2 | . 1 . . . 1 Used . | . . . . . . Hacking Detections 26 | . 5 . 6 . 15 Full Trace Events 1 | . . . . . 1 Feedback Events . | . . . . . . Feedback Blocked . | . . . . . . Robot Schematics Acquired . | . . . . . . Robots Built . | . . . . . . Authchips . | . . . . . . Time . | . . . . . . Total Robot Build Rating . | . . . . . . Part Schematics Acquired 24 | . . . . . 24 Parts Built . | . . . . . . Authchips . | . . . . . . Time . | . . . . . . Total Part Build Rating . | . . . . . . Part Studies Acquired 3 | . . . . . 3 Parts Repaired 1 | . . . . . 1 Time 32 | . . . . . 32 Parts Recycled . | . . . . . . Recycled Matter . | . . . . . . Retrieved Matter . | . . . . . . Retrieved Components . | . . . . . . Parts Scanalyzed . | . . . . . . Part Schematics Acquired . | . . . . . . Parts Damaged . | . . . . . . Bothacking | -11 -10 -10 -9 -9 -6 ------------ Run | Yrd Mat Sub Rec Scr Fac Used RIF Installer . | . . . . . . Robots Hacked . | . . . . . . Non-combat . | . . . . . . Combat . | . . . . . . Robot Hacks Applied . | . . . . . . Relay Couplers Released . | . . . . . . Fabnet Peak Effective % . | . . . . . . Robots Rewired 5 | . . . 5 . . Allies Hacked . | . . . . . . Hacks Repelled . | . . . . . . Allies | -11 -10 -10 -9 -9 -6 -------- Run | Yrd Mat Sub Rec Scr Fac Total Allies 13 | . . 8 5 . . Largest Group 7 | . . 7 5 5 3 Highest-Rated Group 133 | . . 133 95 55 37 Highest-Rated Ally 21 | . . 19 21 21 21 Initial UFD Resources 23 | . . . . . 23 Total Orders 10 | . . . . 10 . STAY 5 | . . . . 5 . FOLLOW 5 | . . . . 5 . Ally Attacks 70 | . . 34 22 3 11 Total Damage 1035 | . . 423 388 74 150 Kills 11 | . . 6 3 2 . Allies Corrupted . | . . . . . . Allies Melted . | . . . . . . Intel | -11 -10 -10 -9 -9 -6 ------- Run | Yrd Mat Sub Rec Scr Fac Active Infowar (turns) 856 | . . 284 . . 572 Structural 329 | . . 284 . . 45 Traps 572 | . . . . . 572 Robot Analysis Total 5 | . 2 . 1 . 2 Derelict Logs Recovered 5 | . . 2 . 3 . Drone Launches . | . . . . . . Drone Recoveries . | . . . . . . Exploration | -11 -10 -10 -9 -9 -6 ------------- Run | Yrd Mat Sub Rec Scr Fac Turns Passed 12348 | 59 1314 3328 1650 3509 2488 Spaces Moved 7459 | 50 969 2297 515 1419 2209 Core 13 | 6 . . . . 7 Treads 7 | . 2 5 . . . Legs . | . . . . . . Wheels 5598 | 44 967 2292 515 1419 361 Hover 1506 | . . . . . 1506 Flight 335 | . . . . . 335 Fastest Speed 28 | 50 100 105 295 90 28 Average Speed 149 | 94 113 136 295 240 86 Slowest Speed 1505 | 100 240 295 295 295 1505 Overloaded Moves . | . . . . . . Propulsion Burnouts . | . . . . . . Robots Hopped 1 | . . . . . 1 Potential Cave-ins . | . . . . . . Cave-ins Triggered . | . . . . . . Exploration Rate (%) 74 | 4 97 93 97 85 71 Regions Visited 5 Branch Regions 3 Pre-discovered Areas 17 | . 2 1 4 5 5 Known Exits Taken 4 | . 1 1 1 1 . Unknown Exits Taken 1 | 1 . . . . . Scrap Searched 12 | . . 7 . 5 . Spaces Dug 19 | . . . . . 19 Terrain Destroyed 30 | . . . . . 30 Melee 19 | . . . . . 19 Projectile 8 | . . . . . 8 AOE 3 | . . . . . 3 Terrain Rammed . | . . . . . . Walls Destroyed . | . . . . . . Machines Disabled . | . . . . . . Actions | -11 -10 -10 -9 -9 -6 --------- Run | Yrd Mat Sub Rec Scr Fac Total 8374 | 59 1106 2454 641 1538 2576 Wait 360 | . 73 69 56 19 143 Move 7453 | 49 968 2296 514 1419 2207 Hop 1 | . . . . . 1 Pick Up 130 | 4 15 31 1 54 25 Fast Attach 35 | 6 1 1 . 3 24 Attach 30 | . 2 5 1 1 21 Detach 3 | . . . . 1 2 Swap 16 | . 2 5 . . 9 Drop 92 | . 5 25 1 41 20 Fire 126 | . 40 22 5 . 59 Melee 63 | . . . . . 63 Ram . | . . . . . . Kick . | . . . . . . Crush . | . . . . . . Escape Stasis 2 | . . . . . 2 Rewire 63 | . . . 63 . . Trap . | . . . . . . Miscellaneous . | . . . . . . Route ------- -11/Scrapyard -10/Materials (discovered 6 exits: *Mat x3 / *Min x2 / *Sub) -10/Subcaves (discovered 4 exits: *Mat x2 / *Rec / *Scr) -9/Recycling (discovered 2 exits: [*Fac] / *Scr) -9/Scraptown (discovered 2 exits: *Fac x2) -6/Factory (discovered 6 exits: *Fac x4 / *Low x2) History --------- Turn | Location | Event 20 | -11/Scrapyard | Discovered new exit (range 16) 60 | -11/Scrapyard | Entered Materials 75 | -10/Materials | Discovered new exit (range 15) 220 | -10/Materials | Discovered new exit (range 9) 314 | -10/Materials | Build established: Mutant 376 | -10/Materials | Discovered new exit (range 4) 462 | -10/Materials | Central database locked down 462 | -10/Materials | Identified exit to Mines 552 | -10/Materials | Discovered new exit (range 7) 955 | -10/Materials | Learned Storage emergency access door positions 1021 | -10/Materials | Learned location of 2 exits from Mines 1079 | -10/Materials | Learned Storage trap positions 1125 | -10/Materials | Learned 4 Subcaves zone layouts 1184 | -10/Materials | Learned Storage security intel 1203 | -10/Materials | Discovered new exit (range 10) 1219 | -10/Materials | Learned location of 1 exit from Storage 1323 | -10/Materials | Identified exit to Materials 1323 | -10/Materials | Identified exit to Subcaves 1374 | -10/Materials | Entered Subcaves 1375 | -10/Subcaves | Approached by a straggling Scientist 1375 | -10/Subcaves | Identified exit to Materials 1397 | -10/Subcaves | Learned location of Zion (-7) 1427 | -10/Subcaves | Core integrity fell below 50% 1466 | -10/Subcaves | Lost 4 parts (1p2n1w) 1467 | -10/Subcaves | Shifting Twisted Machinery released Shrapnel Trap 1497 | -10/Subcaves | Identified exit to Recycling 1556 | -10/Subcaves | Visited 4L-MR0's lab 1566 | -10/Subcaves | Found Prototype Device 1572 | -10/Subcaves | Found Meta Core 1656 | -10/Subcaves | Scientist uncovered a shortcut to Scraptown 1747 | -10/Subcaves | Visited triangular shrine 1755 | -10/Subcaves | Found Prototype Device 1756 | -10/Subcaves | Identified Sfc. Transmogrifier 1758 | -10/Subcaves | Identified V3-11A's Pendant 1763 | -10/Subcaves | Befriended Subdweller 2218 | -10/Subcaves | Disturbed a concealed Subdweller 2218 | -10/Subcaves | Befriended Subdweller 2618 | -10/Subcaves | Befriended Subdweller 2728 | -10/Subcaves | Befriended Subdweller 2748 | -10/Subcaves | Befriended Subdweller 2760 | -10/Subcaves | Shifting Twisted Machinery released Ripper 2766 | -10/Subcaves | Shifting Twisted Machinery released Battle Rifle 3008 | -10/Subcaves | Befriended Subdweller 3099 | -10/Subcaves | A swath of the cavern ceiling suddenly collapsed 3123 | -10/Subcaves | Befriended Subdweller 3223 | -10/Subcaves | A swath of the cavern ceiling suddenly collapsed 3253 | -10/Subcaves | Befriended Subdweller 3761 | -10/Subcaves | Shifting Twisted Machinery released Sub. Power Source 4033 | -10/Subcaves | Found SUBCON Basin 4246 | -10/Subcaves | Build established: Hauler-Mutant 4702 | -10/Subcaves | Entered Recycling 4702 | -9/Recycling | Accompanied by 5 allies 5188 | -9/Recycling | Lost 3 allies 5476 | -9/Recycling | Discovered new exit (range 16) 5858 | -9/Recycling | Learned 2 Storage zone layouts 5927 | -9/Recycling | Learned Materials stockpile data 5986 | -9/Recycling | Learned Storage emergency access door positions 6033 | -9/Recycling | Learned location of 3 exits from Materials 6068 | -9/Recycling | Learned location of Mines (-9) 6094 | -9/Recycling | Identified exit to Scraptown 6133 | -9/Recycling | Learned Storage stockpile data 6168 | -9/Recycling | Learned 2 Materials zone layouts 6212 | -9/Recycling | Learned location of 2 exits from Materials 6254 | -9/Recycling | Scanned before Scraplab entrance 6296 | -9/Recycling | Entered Scraplab 6352 | -9/Recycling | Entered Scraptown 6352 | -9/Scraptown | Accompanied by 5 allies 6565 | -9/Scraptown | Delivered V3-11A's Pendant to T0-NE2 in exchange for information 6943 | -9/Scraptown | Scanned Subdweller tech in exchange for log data 6951 | -9/Scraptown | Learned Factory stockpile data 6954 | -9/Scraptown | Learned Research security intel 6957 | -9/Scraptown | Learned location of 1 exit from Research 7040 | -9/Scraptown | Visited Spacefarers 7108 | -9/Scraptown | Visited SPCMW 7137 | -9/Scraptown | Visited Awakened 7181 | -9/Scraptown | Visited Red Mages 7274 | -9/Scraptown | Found Relay Coupler [Proto] 7870 | -9/Scraptown | Visited CR-KLE's Repair Center 7892 | -9/Scraptown | CR-KLE repaired 5 parts 7942 | -9/Scraptown | Visited TADAMA 7998 | -9/Scraptown | Visited UFD Registry 7998 | -9/Scraptown | Registered with UFD as "Zerosys" 8104 | -9/Scraptown | Visited Cartography Club 8151 | -9/Scraptown | Visited Scrapoid Research Area 8198 | -9/Scraptown | Visited Chapter 10 8287 | -9/Scraptown | Visited Modified Component R&D 8399 | -9/Scraptown | Visited Scrap Suit Storage 8446 | -9/Scraptown | Visited Infowarlord's Domain 8468 | -9/Scraptown | Visited DA-N13 Charitable Foundation 8475 | -9/Scraptown | Found DCF Scrap (26 items) 8627 | -9/Scraptown | Delivered Scrap Shield to a Scientist 8809 | -9/Scraptown | Visited LU-1G1's Boring Crew 8841 | -9/Scraptown | Visited Supply Room 8894 | -9/Scraptown | Visited Junk Repository 9040 | -9/Scraptown | Found Spectral Analyzer 9216 | -9/Scraptown | Found Deep Structural Scanner 9226 | -9/Scraptown | Learned location of Upper Caves (-5) 9226 | -9/Scraptown | Learned location of Cetus (-4) 9226 | -9/Scraptown | Learned location of Hub_04(d) (-4) 9226 | -9/Scraptown | Learned location of Quarantine (-2) 9226 | -9/Scraptown | Learned 8 Factory zone layouts 9226 | -9/Scraptown | Learned 12 Factory zone layouts 9226 | -9/Scraptown | Learned 16 Factory zone layouts 9226 | -9/Scraptown | Learned 8 Access zone layouts 9226 | -9/Scraptown | Learned 4 Mines zone layouts 9226 | -9/Scraptown | Learned 4 Storage zone layouts 9226 | -9/Scraptown | Learned 8 Lower Caves zone layouts 9226 | -9/Scraptown | Learned 4 Armory zone layouts 9226 | -9/Scraptown | Learned Factory emergency access door positions 9226 | -9/Scraptown | Learned location of 1 exit from Research 9226 | -9/Scraptown | Learned location of 3 exits from Upper Caves 9226 | -9/Scraptown | Learned location of 2 exits from Proximity Caves 9226 | -9/Scraptown | Identified exit to Factory 9563 | -9/Scraptown | Met Optimus 9563 | -9/Scraptown | Accepted into 0bPrime 9846 | -9/Scraptown | Civil war broke out across Scraptown 9861 | -9/Scraptown | Entered Factory 9861 | -6/Factory | Accompanied by 3 allies 9861 | -6/Factory | Evolved 8 slots: Propulsion x2, Utility x6 9862 | -6/Factory | Identified exit to Factory 10044 | -6/Factory | Lost 3 allies 10180 | -6/Factory | Tech Extrapolator generated special schematic: Deep Structural Scanner 10235 | -6/Factory | Repaired Med. Armor Plating 10410 | -6/Factory | Spotted B-75 Beast 10458 | -6/Factory | Destroyed B-75 Beast 10484 | -6/Factory | Lost 7 parts (1p3n3u) 10677 | -6/Factory | Discovered new exit (range 13) 10919 | -6/Factory | Lost 3 parts (1n1u1w) 11204 | -6/Factory | Tech Extrapolator generated special schematic: Energy Deflector 11279 | -6/Factory | Allied Derelicts emerged from ambush trap array 11366 | -6/Factory | Build established: Hacker-Gladiator 11381 | -6/Factory | Discovered new exit (range 4) 11480 | -6/Factory | Lost 3 allies 11611 | -6/Factory | Search patrols dispatched 11615 | -6/Factory | Identified exit to Lower Caves 11655 | -6/Factory | Core integrity fell below 50% 11824 | -6/Factory | Learned Hub_04(d) interactive machine intel 11891 | -6/Factory | Learned location of Warlord (-4) 11933 | -6/Factory | Core integrity fell below 20% 11942 | -6/Factory | Lost 6 parts (1p2n2u1w) 11947 | -6/Factory | Learned location of Lower Caves (-6) 11960 | -6/Factory | Watched by a mysterious "MATRIX" hacker 11994 | -6/Factory | Learned location of Proximity Caves (-6) 12031 | -6/Factory | Learned location of 1 exit from Lower Caves 12071 | -6/Factory | Loaded intel: 7 recycling unit locations 12078 | -6/Factory | Learned location of Archives (-4) 12262 | -6/Factory | Central database locked down 12311 | -6/Factory | Search patrols dispatched 12332 | -6/Factory | Learned location of Protoforge (-2) 12349 | -6/Factory | Destroyed by H-66 Slayer with Heavy Assault Rifle Last Messages --------------- 12338_ System corrupted: Matter fused (-8). 12339_ Connecting with Terminal... >>Enumerate(Exterminations) Retrieving latest reported positions... No active extermination squads found. >>Prototypes Downloading prototype IDs... Thermal Defense Suite Lgt. Neutrino Core 12339_ Connecting with Terminal... 12341_ Triggered Blade Trap. 12341_ Massive razor-sharp blades shoot up from within the floor. 12341_ Nuclear Pulse Thruster severed. 12343_ Acquired Nuclear Pulse Thruster. 12344_ Slug penetrates Wall. 12349_ ALERT: Suspicious intruders detected, dispatching Cutter reinforcements to area. 12349_ Penetrated by Slug. 12349_ Slug penetrates Wall. Map ----- +----------------------------------------------------+ | ??????????# ?????????????????????????????# | | ??????????#??????????????????????????????# | | ????????????????????????????############## | | ????????????????????????????#] # # | | ????????????????????????????# """ """ # # | | ????????????????????????????# """ """ # # | | ????????????????????????????# """ """ # # | | ????????????????????????????# # / | | ?????????????????????????#### """ """ + # | | ?????????????????????????# + """ """ # # | | ?????????????????????????# ## ! """ """ # # | | ???????????????###########+## + # | | ########### #??# ""G"" # " " #### #### | | ??????????# #??# "" "" # "Y" #??# #??# | | ??????????# #??# # """ #??# ##?# | | ??????????# #??# #####+########?? ??# | | ????????### #### #???# # ## ??# | | #######?# ## #???# # """ / ?# | | #?# ## """ """ ##### # "Y" #? ?# | | #?# < ## """ """ + + " " #? ! ?# | | #?# ## """ """ ## # #### #### | | """ #?# ## ## # #??# #??? | | """ #?## ### ## ########??# #??? | | """ #??# #?# ## #?????????# #??? | | #??# #?#######/####### #?????????# #??? | | #??# #?????# k @ #?#########+#### | | ########## ##????# h#####+##+#?# # | | ?# # #????# #?# #?#"S # | | ?# # ###### #?# T #?#""" ! # | | ?#""" + #?# ] #?# "" # | | ?#"Y # ###### #?# !#?# """ # | | ?#""" # #????# #?# #?# """ # | | ?# ### ###????# #?# ! #?# """ # | | ?########?# #??????# #?########?# # | | ??????????# #??????# #??????????# """ """ # | | ??????????# #??????# #??????????# """ """ # | | ??????????# #??????# ############ """ """ # | | ??????????# ######## # ""/ ## # | | ??????????# # # # "" ########+###### | | ??????????# # # # " ###### + | | ??????????# # " # " ! # # # | | ??????????# # # + # "" # # | | ??????????# # # # # "T # + | | ??????????# # / # # # "" + # | | ??????????# # # ^^^ # # # # | | ??????????# # / # ^^^ ###+############ # | | ??????????# # # # | | ??????????# # # # | | ??????????# # # #### | | ??????????# # !! %+ #??? | +----------------------------------------------------+ Best States ------------- Heat Dissipation 39 Coolant Potential 65 Energy Generation 18 Energy Capacity 200 Matter Stores 300 Matter Capacity 300 Sight Range 16 Terrain Scan Density 10 Additional Mass Support 9 Armor Coverage 450 Utility Shielding 66 Evasion (%) 74 Melee Accuracy 24 Recoil Reduction 1 Offensive Hacking 34 Defensive Hacking 24 Authchip Count 4 Item Schematics ----------------- Mak. Leg | -6/Factory | Extrapolated Lgt. Humpback | -6/Factory | Extrapolated Mak. Power Source | -6/Factory | Extrapolated Deep Structural Scanner | -6/Factory | Extrapolated 0b10 Decoder Chip [Scout] | -6/Factory | Extrapolated Mak. Hover Unit | -6/Factory | Extrapolated Mak. Coolant Network | -6/Factory | Extrapolated Mak. Medium Armor Plating | -6/Factory | Extrapolated Mak. Ablative Armor | -6/Factory | Extrapolated Beamcaster | -6/Factory | Extrapolated Bore Cannon | -6/Factory | Extrapolated Mak. Terrain Scanner | -6/Factory | Extrapolated Energy Deflector | -6/Factory | Extrapolated Mak. Hacking Suite | -6/Factory | Extrapolated Mak. Terrain Scan Processor | -6/Factory | Extrapolated Mak. Light Armor Plating | -6/Factory | Extrapolated Mak. Targeting Computer | -6/Factory | Extrapolated Mak. Core Shielding | -6/Factory | Extrapolated Hcp. Storage Unit | -6/Factory | Hacked Mak. Thermal Plating | -6/Factory | Extrapolated Imp. System Shield | -6/Factory | Hacked Mak. Trap Scanner | -6/Factory | Extrapolated Mak. System Shield | -6/Factory | Extrapolated Imp. Hacking Suite | -6/Factory | Hacked Robot Schematics ------------------ None Fabricated ------------ Nothing Repaired ---------- Med. Armor Plating | 4% | -6/Factory Studied --------- Power Sword | -6/Factory | Hacked Coil Gun | -6/Factory | Hacked Airjet | -6/Factory | Hacked Alien Tech Used ----------------- None Achievements -------------- SUBSUB Uncivil War Challenges ------------ None Game ------ Seed RocketLightpackExpander Manual? 0 Play Time 02:35:26 Cumulative 368.7 hours Start 2026.07.27 @ 20:59:07 End 2026.07.29 @ 14:57:35 Sessions 5 Manual Loads 0 Difficulty Rogue Special Mode None Game No. 216 Rogue 142 Adventurer 74 Explorer 0 Win Type - Total 18 Types 15/0/0/3/0/0/0/0/0/0 Lore% 75 Gallery% 68 Achievement% 54 Wizard Run 0 Options --------- Layout 2 ASCII 0 Keyboard 0 Movement Mouse Keybinds 0 Fullscreen 1 Font 32/SmallcapsGlow Map View 50x44 Zoom Use 0% Tactical HUD 1 Map Filters NONE Filters NONE Steam 1 RUN: d561d760-7405-4f0d-b04b-be205755efaa